bitfinex/quotes_SOLUSD_20220109
["timestamp","ask_amount","ask_price","bid_price","bid_amount"]
[1641712940708,3.25,141.3,141.21,24.0991]
[1641712940907,3.25,141.3,141.22,10.6227]
[1641712942011,3.25,141.3,141.21,34.7226]
[1641712942813,13.8728,141.3,141.21,34.7226]
[1641712943111,21.58905875,141.3,141.19,3.0]
[1641712943312,22.8435,141.29,141.19,3.0]
[1641712943510,3.0,141.28,141.17,27.915]
[1641712943710,22.7828,141.27,141.17,24.915]
[1641712944111,3.0,141.26,141.17,24.915]
[1641712944313,10.6268,141.25,141.17,35.5414]
[1641712944810,3.0,141.26,141.17,35.5414]
[1641712945011,3.0,141.26,141.18,3.0]
[1641712945913,13.6255,141.26,141.18,3.0]
[1641712947015,0.25,141.25,141.18,3.0]
[1641712947819,22.7828,141.27,141.18,13.6257]
[1641712948117,10.2,141.3,141.19,0.25]
[1641712948118,12.20058987,141.3,141.19,0.25]
[1641712948317,36.66028987,141.3,141.2,35.4054]
[1641712949217,36.66028987,141.3,141.24,10.6214]
[1641712949818,36.66028987,141.3,141.22,29.85962684]
[1641712950220,36.66028987,141.3,141.23,10.6216]
[1641712951518,3.25,141.29,141.23,10.6216]
[1641712952318,0.25,141.29,141.23,10.6216]
[1641712953419,3.25,141.29,141.23,10.6216]
[1641712955023,0.25,141.29,141.23,10.6216]
[1641712955224,0.25,141.29,141.24,3.0]
[1641712955427,2.00058987,141.31,141.26,10.6184]
[1641712955927,2.00058987,141.33,141.26,10.6184]
[1641712956128,2.00058987,141.33,141.27,3.0]
[1641712956929,2.00058987,141.33,141.28,10.6169]
[1641712957728,2.00058987,141.33,141.28,33.28657365]
[1641712957927,2.00058987,141.34,141.28,33.28657365]
[1641712958730,2.00058987,141.35,141.28,33.28657365]
[1641712959259,0.25,141.34,141.28,33.28657365]
[1641712959462,2.25058987,141.34,141.28,33.28657365]
[1641712959858,2.00058987,141.34,141.29,0.25]
[1641712960059,2.00058987,141.34,141.29,3.25]
[1641712960259,2.00058987,141.34,141.31,10.614]
[1641712961058,3.99319536,141.37,141.31,10.614]
[1641712961059,5.99378523,141.37,141.31,10.614]
[1641712961259,2.00058987,141.37,141.31,10.614]
[1641712961759,0.25,141.36,141.31,10.614]
[1641712962358,2.00058987,141.38,141.31,10.614]
[1641712962560,0.25,141.37,141.31,10.614]
[1641712965362,2.25058987,141.37,141.31,10.614]
[1641712965562,2.00058987,141.37,141.31,10.614]
[1641712965961,3.0,141.36,141.31,10.614]
[1641712966660,3.0,141.37,141.31,10.614]
[1641712966860,2.00058987,141.36,141.31,10.614]
[1641712967061,3.0,141.35,141.31,10.614]
[1641712967263,2.00058987,141.36,141.31,10.614]
[1641712967862,2.00058987,141.37,141.31,10.614]
[1641712968361,2.00058987,141.37,141.32,0.25]
[1641712968563,2.00058987,141.38,141.32,0.25]
[1641712968763,2.00058987,141.38,141.35,10.6114]
[1641712969464,2.00058987,141.4,141.35,10.6114]
[1641712969868,0.25,141.39,141.35,10.6114]
[1641712971966,2.00058987,141.41,141.35,10.6114]
[1641712973468,0.25,141.4,141.35,10.6114]
[1641712975470,0.25,141.4,141.38,10.6081]
[1641712975671,2.00058987,141.41,141.38,7.839]
[1641712976070,2.00058987,141.42,141.39,0.25]
[1641712976570,2.00058987,141.42,141.4,10.6065]
[1641712976970,2.00058987,141.42,141.41,30.2150915]
[1641712977472,77.91908987,141.45,141.41,30.2150915]
[1641712977872,0.25,141.44,141.41,30.2150915]
[1641712978272,2.25058987,141.44,141.41,30.2150915]
[1641712978773,2.25058987,141.44,141.41,40.8221915]
[1641712979173,2.25058987,141.44,141.41,10.6071]
[1641712979373,2.25058987,141.44,141.41,3.0007]
[1641712979374,42.0,141.42,141.41,3.0007]
[1641712979574,51.849,141.42,141.41,3.0007]
[1641712979779,51.849,141.42,141.33,46.5217]
[1641712979974,51.849,141.42,141.3,10.2]
[1641712980177,3.0,141.41,141.34,24.71852628]
[1641712980376,10.6147,141.4,141.34,24.71852628]
[1641712980775,3.0,141.39,141.34,24.71852628]
[1641712981377,3.25,141.38,141.34,24.71852628]
[1641712981578,3.0,141.38,141.34,24.71852628]
[1641712981778,0.25,141.37,141.34,24.71852628]
[1641712982879,0.25,141.37,141.32,10.6151]
[1641712983980,0.25,141.37,141.32,34.22488932]
[1641712985407,2.25058987,141.37,141.32,34.22488932]
[1641712985609,3.0,141.36,141.32,34.22488932]
[1641712985810,2.25058987,141.37,141.32,34.22488932]
[1641712986010,2.00058987,141.37,141.32,34.22488932]
[1641712989713,0.25,141.36,141.32,34.22488932]
[1641712995720,2.25058987,141.36,141.32,34.22488932]
[1641713001330,2.00058987,141.36,141.32,34.22488932]
[1641713001935,2.00058987,141.36,141.33,0.26]
[1641713002230,2.00058987,141.36,141.34,10.6115]
[1641713002430,2.00058987,141.36,141.35,30.26]
[1641713002630,2.00058987,141.37,141.35,30.26]
[1641713002832,2.00058987,141.37,141.35,30.0]
[1641713003863,2.00058987,141.38,141.35,40.611]
[1641713004034,2.00058987,141.38,141.36,0.26]
[1641713004833,3.99319536,141.41,141.38,45.0]
[1641713005035,1.99207354,141.4,141.39,0.26]
[1641713005234,1.99207354,141.4,141.39,3.51]
[1641713005435,7.9487343,141.43,141.4,27.0]
[1641713005837,3.99319536,141.43,141.41,10.6059]
[1641713006038,3.99319536,141.45,141.41,39.59261681]
[1641713007039,3.99319536,141.47,141.41,39.59261681]
[1641713008041,0.25,141.46,141.41,39.59261681]
[1641713008240,3.99319536,141.47,141.41,39.59261681]
[1641713008442,3.99319536,141.47,141.44,10.604]
[1641713008640,7.99654229,141.48,141.44,10.604]
[1641713009340,100.4904,141.49,141.44,10.604]
[1641713010043,3.0,141.48,141.43,10.607]
[1641713010541,10.99116386,141.48,141.43,10.607]
[1641713010742,10.99116386,141.48,141.41,28.98671681]
[1641713010940,0.25,141.47,141.42,10.6074]
[1641713011368,0.25,141.47,141.41,28.98671681]
[1641713012172,0.25,141.47,141.41,39.59521681]
[1641713012771,6.99319536,141.48,141.41,39.59521681]
[1641713013371,3.99319536,141.48,141.41,39.59521681]
[1641713013673,77.961,141.49,141.41,39.59521681]
[1641713016475,0.25,141.48,141.41,39.59521681]
[1641713017777,3.25,141.48,141.41,39.59521681]
[1641713020878,0.25,141.48,141.41,39.59521681]
[1641713025485,3.25,141.48,141.41,39.59521681]
[1641713026088,0.25,141.48,141.41,39.59521681]
[1641713026588,3.25,141.48,141.41,39.59521681]
[1641713027088,13.8581,141.48,141.41,39.59521681]
[1641713027289,3.25,141.48,141.41,39.59521681]
[1641713028191,13.8582,141.48,141.41,39.59521681]
[1641713028589,3.25,141.48,141.41,39.59521681]
[1641713030123,3.0,141.48,141.41,39.59521681]
[1641713030595,105.30049536,141.49,141.41,39.59521681]
[1641713030795,101.3073,141.49,141.41,39.59521681]
[1641713030994,101.3073,141.49,141.42,0.26]
[1641713031195,101.3073,141.49,141.45,10.6041]
[1641713031397,77.961,141.49,141.45,10.6041]
[1641713031996,3.0,141.48,141.45,10.6041]
[1641713032197,3.03219997,141.47,141.45,10.6041]
[1641713032897,3.03219997,141.46,141.45,10.6041]
[1641713035301,3.03219997,141.47,141.45,10.6041]
[1641713035502,3.99319536,141.48,141.45,10.6041]
[1641713036506,8.00451796,141.48,141.45,10.6041]
[1641713036904,8.00451796,141.48,141.43,35.347]
[1641713036905,6.06439994,141.47,141.44,10.6062]
[1641713037302,6.06439994,141.47,141.42,25.1796]
[1641713037503,0.25,141.46,141.41,35.3524]
[1641713037731,0.25,141.46,141.31,107.8738]
[1641713037930,24.2419,141.47,141.36,24.17415313]
[1641713038131,27.4919,141.47,141.36,24.17415313]
[1641713038531,27.4919,141.47,141.39,25.76249271]
[1641713038732,4.01173516,141.46,141.39,25.76249271]
[1641713038935,8.00493052,141.46,141.42,10.607]
[1641713039233,8.00493052,141.46,141.39,61.11969271]
[1641713039937,8.00493052,141.46,141.41,10.6083]
[1641713041537,28.23509536,141.47,141.41,10.6083]
[1641713042037,3.0,141.46,141.41,10.6083]
[1641713042238,11.00472917,141.46,141.41,10.6083]
[1641713042636,8.00472917,141.46,141.41,10.6083]
[1641713043237,3.99319536,141.46,141.41,10.6083]
[1641713043840,28.23509536,141.47,141.41,10.6083]
[1641713044039,0.25,141.45,141.41,10.6083]
[1641713044237,28.23509536,141.47,141.41,10.6083]
[1641713044438,0.25,141.46,141.41,10.6083]
[1641713044638,8.25562455,141.46,141.41,10.6083]
[1641713045140,8.25562455,141.46,141.39,25.76249271]
[1641713045342,3.0,141.45,141.4,10.6093]
[1641713045844,14.60289536,141.46,141.4,10.6093]
[1641713046543,3.0,141.45,141.4,10.6093]
[1641713047744,3.0,141.46,141.4,10.6093]
[1641713049644,0.25,141.45,141.4,10.6093]
[1641713051246,3.25,141.45,141.4,10.6093]
[1641713051545,38.84379536,141.47,141.4,10.6093]
[1641713051745,3.0,141.46,141.4,10.6093]
[1641713052044,38.84379536,141.47,141.4,10.6093]
[1641713053049,3.0,141.46,141.4,10.6093]
[1641713053249,3.25,141.46,141.4,10.6093]
[1641713053847,13.8595,141.46,141.4,10.6093]
[1641713054447,13.8595,141.46,141.39,36.37239271]
[1641713054647,13.9295,141.46,141.35,45.5676]
[1641713054848,10.6111,141.44,141.35,45.5676]
[1641713055652,14.60429536,141.44,141.35,45.5676]
[1641713055849,14.60429536,141.44,141.38,10.6104]
[1641713056149,3.0,141.43,141.38,10.6104]
[1641713056750,3.99319536,141.44,141.38,10.6104]
[1641713057151,3.99319536,141.44,141.37,10.6114]
[1641713057350,3.0,141.43,141.37,10.6114]
[1641713057555,10.223,141.43,141.34,22.5223]
[1641713057755,20.8351,141.43,141.34,22.5223]
[1641713058157,20.8351,141.43,141.33,24.911]
[1641713058357,0.07,141.4,141.34,10.6137]
[1641713058556,5.556,141.4,141.32,27.25662016]
[1641713058956,13.8653,141.39,141.32,27.25662016]
[1641713059157,13.8653,141.39,141.3,13.3921239]
[1641713059356,37.0915,141.39,141.3,13.3921239]
[1641713059959,37.0915,141.39,141.32,10.6148]
[1641713060157,37.0915,141.39,141.33,28.53391485]
[1641713061565,26.4762,141.39,141.33,28.53391485]
[1641713061763,26.4762,141.39,141.33,39.14831485]
[1641713063068,23.4762,141.39,141.33,39.14831485]
[1641713064290,23.2262,141.39,141.33,39.14831485]
[1641713065294,3.0,141.38,141.33,39.14831485]
[1641713065701,23.2262,141.39,141.33,39.14831485]
[1641713066594,3.99319536,141.43,141.33,39.14831485]
[1641713066793,3.07,141.42,141.33,39.14831485]
[1641713066998,3.32,141.42,141.37,10.611]
[1641713067196,3.0,141.42,141.37,10.611]
[1641713067395,3.07,141.43,141.37,10.611]
[1641713067795,3.07,141.43,141.33,28.53391485]
[1641713067995,13.6816,141.43,141.35,10.6129]
[1641713068398,0.25,141.42,141.35,10.6129]
[1641713069096,10.6136,141.41,141.34,10.6136]
[1641713069498,3.0,141.4,141.34,10.6136]
[1641713071100,3.0,141.41,141.34,10.6136]
[1641713073410,13.6133,141.41,141.34,10.6136]
[1641713073606,10.6133,141.41,141.34,10.6136]
[1641713073806,3.0,141.4,141.33,51.99131485]
[1641713074009,3.0,141.4,141.33,62.60571485]
[1641713074406,10.6144,141.4,141.33,62.60571485]
[1641713074808,3.0,141.39,141.33,62.60571485]
[1641713075009,3.25,141.39,141.33,62.60571485]
[1641713075440,0.25,141.39,141.33,62.60571485]
[1641713075641,10.6137,141.41,141.33,62.60571485]
[1641713076043,3.0,141.4,141.33,62.60571485]
[1641713076842,10.6141,141.4,141.32,10.6152]
[1641713077043,3.0,141.39,141.32,10.6152]
[1641713077443,9.236,141.39,141.3,13.3921239]
[1641713077645,0.07,141.37,141.3,13.3921239]
[1641713077846,10.6195,141.34,141.3,3.1921239]
[1641713078645,3.0,141.33,141.3,3.1921239]
[1641713079246,6.31439994,141.32,141.3,3.1921239]
[1641713082351,0.25,141.32,141.3,3.1921239]
[1641713082752,3.0,141.34,141.3,3.1921239]
[1641713082952,0.25,141.33,141.3,3.1921239]
[1641713083952,0.25,141.34,141.3,3.1921239]
[1641713084354,10.8688,141.34,141.3,3.1921239]
[1641713084555,3.0,141.33,141.3,3.1921239]
[1641713085157,0.25,141.34,141.3,3.1921239]
[1641713085357,10.8688,141.34,141.3,3.1921239]
[1641713086461,0.25,141.34,141.3,3.1921239]
[1641713087664,10.8687,141.34,141.3,3.1921239]
[1641713087862,3.0,141.33,141.3,3.1921239]
[1641713088164,10.8687,141.34,141.3,3.1921239]
[1641713088361,22.8753,141.36,141.3,3.1921239]
[1641713088561,3.0,141.35,141.3,3.1921239]
[1641713089160,3.0,141.34,141.3,3.1921239]
[1641713089763,22.8753,141.36,141.3,3.1921239]
[1641713089962,3.0,141.34,141.3,3.1921239]
[1641713090363,13.6196,141.33,141.3,3.1921239]
[1641713090561,6.06439994,141.32,141.3,3.1921239]
[1641713097491,6.13439994,141.32,141.3,3.1921239]
[1641713097893,43.621,141.31,141.3,3.1921239]
[1641713098093,46.621,141.31,141.3,2.39e-05]
[1641713098891,38.258,141.31,141.3,2.39e-05]
[1641713099294,35.258,141.31,141.3,2.39e-05]
[1641713099494,27.637,141.31,141.3,2.39e-05]
[1641713099693,0.25,141.31,141.3,2.39e-05]
[1641713100503,3.25,141.31,141.3,2.39e-05]
[1641713100896,0.25,141.31,141.3,2.39e-05]
[1641713101796,3.0,141.31,141.3,2.39e-05]
[1641713102495,6.06439994,141.32,141.3,2.39e-05]
[1641713102695,16.68599994,141.32,141.3,2.39e-05]
[1641713102897,6.06439994,141.32,141.3,2.39e-05]
[1641713105496,0.25,141.31,141.3,2.39e-05]
[1641713108198,6.06439994,141.32,141.3,2.39e-05]
[1641713108402,3.99319536,141.36,141.3,2.39e-05]
[1641713109505,7.97752672,141.38,141.31,30.49969085]
[1641713110102,3.99319536,141.38,141.31,30.49969085]
[1641713110301,27.51669536,141.39,141.31,30.49969085]
[1641713110500,0.25,141.38,141.31,30.49969085]
[1641713111104,0.25,141.38,141.32,10.6151]
[1641713111301,0.25,141.38,141.31,30.49969085]
[1641713112304,0.25,141.38,141.32,10.6151]
[1641713115306,0.25,141.38,141.31,41.11539085]
[1641713122914,0.25,141.38,141.31,10.6157]
[1641713123115,0.25,141.38,141.3,24.2614239]
[1641713123514,3.25,141.38,141.3,24.2614239]
[1641713123715,0.25,141.38,141.3,24.2614239]
[1641713124117,3.25,141.38,141.3,24.2614239]
[1641713124515,0.25,141.38,141.3,24.2614239]
[1641713124917,0.25,141.38,141.3,34.8776239]
[1641713125616,1.95130315,141.37,141.3,34.8776239]
[1641713126519,1.95130315,141.36,141.3,34.8776239]
[1641713129221,1.95130315,141.36,141.3,24.2614239]
[1641713129420,0.25,141.35,141.3,2.39e-05]
[1641713129822,3.25,141.35,141.3,2.39e-05]
[1641713130524,1.95130315,141.34,141.3,2.39e-05]
[1641713133132,0.25,141.33,141.3,2.39e-05]
[1641713133931,6.06439994,141.32,141.3,2.39e-05]
[1641713135034,12.68839994,141.32,141.3,2.39e-05]
[1641713135257,51.7563,141.31,141.3,2.39e-05]
[1641713135456,54.7563,141.31,141.3,2.39e-05]
[1641713136158,38.3787,141.31,141.3,2.39e-05]
[1641713136563,40.33000315,141.31,141.3,2.39e-05]
[1641713136757,37.33000315,141.31,141.3,2.39e-05]
[1641713138158,40.33000315,141.31,141.3,2.39e-05]
[1641713138959,40.58000315,141.31,141.3,2.39e-05]
[1641713139561,38.6287,141.31,141.3,2.39e-05]
[1641713142862,51.8724,141.31,141.3,2.39e-05]
[1641713143867,86.9424,141.31,141.3,2.39e-05]
[1641713144066,88.89370315,141.31,141.3,2.39e-05]
[1641713144265,52.6274,141.29,141.28,3.1872669]
[1641713144664,13.6274,141.29,141.28,3.1872669]
[1641713145465,13.6974,141.29,141.28,3.1872669]
[1641713145870,47.6974,141.29,141.28,3.1872669]
[1641713146874,71.9474,141.29,141.28,3.1872669]
[1641713147074,28.0,141.28,141.2,0.6998892]
[1641713147276,10.6261,141.26,141.2,0.6998892]
[1641713147678,10.6261,141.26,141.18,9.8998892]
[1641713148479,3.0,141.25,141.18,9.8998892]
[1641713148878,14.48581796,141.26,141.18,20.5252892]
[1641713149078,3.0,141.25,141.18,20.5252892]
[1641713150881,3.0,141.26,141.18,20.5252892]
[1641713151184,35.2787,141.27,141.18,20.5252892]
[1641713151780,0.25,141.26,141.18,20.5252892]
[1641713152080,3.25,141.26,141.18,20.5252892]
[1641713153281,0.25,141.26,141.18,20.5252892]
[1641713153915,10.8757,141.26,141.18,9.8998892]
[1641713154080,13.8757,141.26,141.18,9.8998892]
[1641713155086,3.25,141.26,141.19,3.0]
[1641713155286,0.25,141.26,141.19,3.0]
[1641713155485,0.25,141.26,141.18,3.0]
[1641713155688,3.25,141.26,141.18,3.25]
[1641713156088,3.25,141.26,141.18,13.8752]
[1641713156288,13.8757,141.26,141.18,13.8752]
[1641713157086,13.8757,141.26,141.18,3.25]
[1641713157988,10.8757,141.26,141.18,3.25]
[1641713159091,0.25,141.26,141.18,13.8758]
[1641713159491,0.25,141.26,141.19,0.26]
[1641713161294,35.2792,141.27,141.19,0.26]
[1641713161520,35.2792,141.27,141.19,10.885]
[1641713161717,35.2792,141.27,141.2,0.25]
[1641713161918,35.2792,141.27,141.19,34.3511]
[1641713162920,0.25,141.26,141.19,34.3511]
[1641713164418,0.25,141.26,141.19,23.7261]
[1641713164618,10.876,141.26,141.19,23.7261]
[1641713166122,11.9416165,141.26,141.19,23.4661]
[1641713166323,11.9416165,141.26,141.18,3.0]
[1641713166624,3.0,141.25,141.18,3.0]
[1641713166823,13.6272,141.25,141.18,3.0]
[1641713167022,13.6272,141.25,141.19,3.0]
[1641713167222,13.6272,141.25,141.17,3.25]
[1641713167422,10.6272,141.25,141.17,3.25]
[1641713168022,10.6272,141.25,141.17,26.4161]
[1641713168821,10.6272,141.25,141.17,37.0427]
[1641713170425,0.07,141.24,141.13,2.00340626]
[1641713170625,104.2758,141.24,141.13,1.50340626]
[1641713171426,104.2758,141.24,141.12,53.0981925]
[1641713171628,10.6291,141.22,141.14,10.6288]
[1641713172027,10.6291,141.22,141.15,3.0]
[1641713173132,13.47164211,141.22,141.15,3.0]
[1641713173331,0.07,141.21,141.13,13.6294]
[1641713173630,33.9307,141.21,141.13,3.0]
[1641713174031,33.9307,141.21,141.13,2.5]
[1641713174232,0.25,141.2,141.13,2.5]
[1641713175333,10.8801,141.2,141.13,2.5]
[1641713175634,0.25,141.2,141.13,13.1296]
[1641713176836,23.231,141.21,141.14,0.25]
[1641713177039,79.2588,141.24,141.14,0.25]
[1641713177235,79.2588,141.24,141.14,0.51]
[1641713178137,79.2588,141.24,141.16,35.4139]
[1641713178437,79.2588,141.24,141.19,10.6247]
[1641713178736,79.2588,141.24,141.19,10.1247]
[1641713178937,0.25,141.23,141.19,10.1247]
[1641713179539,0.25,141.23,141.2,3.0]
[1641713179736,6.06439994,141.22,141.21,10.6231]
[1641713179940,6.31439994,141.22,141.17,50.44254087]
[1641713180238,6.31439994,141.22,141.18,3.0]
[1641713180439,6.06439994,141.22,141.18,3.0]
[1641713182043,6.06439994,141.22,141.18,13.6252]
[1641713182240,6.06439994,141.22,141.18,10.6252]
[1641713182441,23.0994,141.26,141.18,10.6252]
[1641713182942,23.0994,141.26,141.19,3.0]
[1641713183143,23.0994,141.26,141.22,10.6226]
[1641713183342,23.0994,141.26,141.19,3.0]
[1641713183544,23.0994,141.26,141.18,3.0]
[1641713183943,23.0994,141.26,141.17,24.9856]
[1641713184142,0.07,141.25,141.17,24.9856]
[1641713184546,0.07,141.25,141.18,10.6254]
[1641713187249,10.6963,141.25,141.17,24.9856]
[1641713187447,13.6963,141.25,141.17,24.9856]
[1641713187849,3.07,141.25,141.17,24.9856]
[1641713188353,0.25,141.24,141.17,35.6117]
[1641713190555,0.25,141.24,141.18,3.0]
[1641713190757,0.25,141.24,141.19,10.625]
[1641713193558,0.25,141.24,141.18,10.6258]
[1641713195895,0.07,141.23,141.17,10.6265]
[1641713196494,5.03968045,141.23,141.17,10.6265]
[1641713196696,5.03968045,141.23,141.14,35.4196]
[1641713196896,38.07369536,141.22,141.13,31.986]
[1641713197098,0.07,141.21,141.13,31.986]
[1641713197298,3.07,141.21,141.11,24.39975341]
[1641713197501,22.8508,141.2,141.11,24.39975341]
[1641713197897,22.8508,141.2,141.11,59.82605341]
[1641713198102,22.8508,141.2,141.15,10.6279]
[1641713198398,22.8508,141.2,141.12,27.3403]
[1641713198998,22.8508,141.2,141.12,62.7645]
[1641713199199,22.8508,141.2,141.15,10.6278]
[1641713199499,22.8508,141.2,141.12,62.7645]
[1641713199899,22.8508,141.2,141.12,27.3403]
[1641713200101,22.8508,141.2,141.13,35.4222]
[1641713200298,22.8508,141.2,141.16,10.6273]
[1641713200499,0.25,141.19,141.16,10.6273]
[1641713200699,6.06439994,141.18,141.16,10.6273]
[1641713201399,6.06439994,141.18,141.14,33.1911]
[1641713201598,6.06439994,141.18,141.12,3.0]
[1641713202399,6.06439994,141.18,141.12,13.6301]
[1641713203902,0.25,141.17,141.12,13.6301]
[1641713204303,22.8508,141.2,141.12,37.5841]
[1641713204502,0.25,141.19,141.12,37.5841]
[1641713212614,27.42339536,141.23,141.12,37.5841]
[1641713212815,27.42339536,141.23,141.13,0.51]
[1641713212816,51.20439536,141.23,141.13,0.51]
[1641713213015,3.0,141.22,141.13,46.1323]
[1641713213416,3.99319536,141.23,141.14,3.0]
[1641713213618,3.99319536,141.23,141.14,26.5531]
[1641713213818,74.9305,141.24,141.15,0.25]
[1641713214318,74.9305,141.24,141.14,61.9727]
[1641713214520,74.9305,141.24,141.14,26.5531]
[1641713214718,0.07,141.23,141.14,26.5531]
[1641713214918,22.5188,141.23,141.14,26.5531]
[1641713215120,22.5188,141.23,141.14,23.5531]
[1641713216022,3.0,141.22,141.15,10.6279]
[1641713216420,0.25,141.21,141.15,10.6279]
[1641713217023,22.5188,141.23,141.15,10.6279]
[1641713217223,0.25,141.22,141.15,10.6279]
[1641713217822,3.25,141.22,141.15,10.6279]
[1641713218023,0.25,141.22,141.15,10.6279]
[1641713219225,0.25,141.22,141.14,23.5531]
[1641713219424,3.25,141.22,141.14,23.5531]
[1641713219623,0.25,141.22,141.14,23.5531]
[1641713220027,3.25,141.22,141.14,23.5531]
[1641713220228,10.8779,141.22,141.15,10.6278]
[1641713220428,0.25,141.22,141.14,23.5531]
[1641713220831,0.25,141.22,141.15,3.0]
[1641713221653,0.25,141.22,141.17,10.6262]
[1641713222052,0.25,141.22,141.14,23.5531]
[1641713222753,0.25,141.22,141.16,10.6272]
[1641713223152,0.25,141.22,141.14,23.5531]
[1641713223754,13.8782,141.22,141.14,34.182]
[1641713223954,23.4888,141.21,141.14,34.182]
[1641713224756,34.1176,141.21,141.14,34.182]
[1641713224956,34.1176,141.21,141.13,10.2]
[1641713224957,23.5588,141.21,141.13,10.6295]
[1641713225158,26.57794706,141.21,141.12,47.9475]
[1641713225357,26.57794706,141.21,141.12,24.8414]
[1641713225558,26.57794706,141.21,141.13,3.0]
[1641713225757,30.57114242,141.21,141.13,3.0]
[1641713225958,30.57114242,141.21,141.15,10.6276]
[1641713226160,27.55199536,141.21,141.15,10.6276]
[1641713226464,3.79347455,141.2,141.15,10.6276]
[1641713227257,3.79347455,141.2,141.18,10.6241]
[1641713227458,6.82567452,141.2,141.18,10.6241]
[1641713227858,3.03219997,141.2,141.18,10.6241]
[1641713228558,78.92369536,141.24,141.18,10.6241]
[1641713229057,3.0,141.23,141.18,10.6241]
[1641713229258,3.25,141.23,141.18,10.6241]
[1641713230460,0.25,141.23,141.18,10.6241]
[1641713230658,0.25,141.23,141.21,10.6226]
[1641713230861,0.25,141.23,141.19,24.1789]
[1641713231062,0.25,141.23,141.19,27.1789]
[1641713231661,0.25,141.23,141.21,10.6219]
[1641713232064,3.03219997,141.22,141.21,10.6219]
[1641713232362,6.31439994,141.22,141.21,10.6219]
[1641713232762,6.31439994,141.22,141.19,24.1789]
[1641713232962,6.31439994,141.22,141.16,0.25]
[1641713233363,6.06439994,141.22,141.16,3.0]
[1641713233764,6.06439994,141.22,141.15,28.75738646]
[1641713234264,6.06439994,141.22,141.17,10.6266]
[1641713234864,0.25,141.21,141.17,10.6266]
[1641713235264,0.25,141.21,141.16,10.6274]
[1641713235864,0.25,141.22,141.16,10.6274]
[1641713238769,0.25,141.22,141.16,33.1687]
[1641713238971,0.25,141.22,141.17,3.0]
[1641713239168,0.25,141.22,141.16,41.7127]
[1641713239568,0.25,141.22,141.19,10.622]
[1641713239971,78.30839536,141.24,141.2,3.0]
[1641713241478,74.3152,141.24,141.22,10.622]
[1641713241673,3.03219997,141.24,141.22,10.622]
[1641713241874,3.99319536,141.25,141.22,10.622]
[1641713243475,0.25,141.24,141.22,10.622]
[1641713243978,6.06439994,141.23,141.22,10.622]
[1641713245682,0.25,141.24,141.22,10.622]
[1641713246885,3.99319536,141.26,141.21,10.6236]
[1641713247289,3.99319536,141.26,141.2,24.8805]
[1641713248306,3.99319536,141.26,141.21,23.65268911]
[1641713248807,14.61789536,141.26,141.21,23.65268911]
[1641713249606,14.61789536,141.26,141.2,24.8805]
[1641713250007,3.0,141.25,141.13,58.3762]
[1641713250208,3.0,141.25,141.15,24.0063]
[1641713250209,27.1781,141.25,141.15,24.0063]
[1641713250410,10.6282,141.21,141.15,24.0063]
[1641713250613,7.273,141.21,141.15,24.0063]
[1641713250810,3.0,141.2,141.15,24.0063]
[1641713251607,10.6298,141.19,141.15,24.0063]
[1641713251809,10.6298,141.19,141.13,22.954]
[1641713252007,10.6298,141.19,141.12,41.05002815]
[1641713252910,3.0,141.2,141.13,10.6292]
[1641713253207,27.3773,141.21,141.13,10.6292]
[1641713253409,27.3773,141.21,141.13,34.1498]
[1641713253907,0.25,141.2,141.13,34.1498]
[1641713254108,3.99319536,141.22,141.14,0.25]
[1641713254308,3.99319536,141.22,141.18,10.6256]
[1641713255408,3.99319536,141.24,141.18,10.6256]